[Event "Titled Tuesday Blitz November 22 Early 2022"]
[White "Mayaud, Raphael"]
[Black "Hristodoulou, Panagiotis"]
[WhiteFideId "627151"]
[BlackFideId "4214340"]
[WhiteElo "2191"]
[BlackElo "2272"]
[Result "0-1"]
[Round "01"]
[TimeControl "180+1"]
[Date "2022.11.23"]
[WhiteClock "0:00:10"]
[BlackClock "0:00:05"]

1. d4 {[%clk 0:02:58]}  d5 {[%clk 0:02:56]} 2. c4 {[%clk 0:02:53]}  e6 {[%clk 0:02:56]} 3. Nf3 {[%clk 0:02:54]}  Nf6 {[%clk 0:02:51]} 4. Nc3 {[%clk 0:02:53]}  h6 {[%clk 0:02:49]} 5. g3 {[%clk 0:02:50]}  Nc6 {[%clk 0:02:39]} 6. Bg2 {[%clk 0:02:49]}  Bd6 {[%clk 0:02:39]} 7. O-O {[%clk 0:02:48]}  O-O {[%clk 0:02:39]} 8. b3 {[%clk 0:02:40]}  dxc4 {[%clk 0:02:37]} 9. bxc4 {[%clk 0:02:40]}  e5 {[%clk 0:02:33]} 10. d5 {[%clk 0:02:39]}  Na5 {[%clk 0:02:00]} 11. Nd2 {[%clk 0:02:37]}  b6 {[%clk 0:01:55]} 12. e4 {[%clk 0:02:32]}  Ba6 {[%clk 0:01:53]} 13. Nb5 {[%clk 0:02:32]}  Nxc4 {[%clk 0:01:48]} 14. a4 {[%clk 0:02:12]}  Nxd2 {[%clk 0:01:31]} 15. Bxd2 {[%clk 0:02:09]}  Nd7 {[%clk 0:01:31]} 16. Qc2 {[%clk 0:01:54]}  Nc5 {[%clk 0:01:21]} 17. Rfc1 {[%clk 0:01:33]}  Qd7 {[%clk 0:01:10]} 18. Rcb1 {[%clk 0:01:15]}  Rfc8 {[%clk 0:00:41]} 19. h4 {[%clk 0:01:11]}  c6 {[%clk 0:00:36]} 20. dxc6 {[%clk 0:01:11]}  Rxc6 {[%clk 0:00:34]} 21. Rd1 {[%clk 0:00:43]}  Ne6 {[%clk 0:00:26]} 22. Qd3 {[%clk 0:00:39]}  Nd4 {[%clk 0:00:20]} 23. Be3 {[%clk 0:00:35]}  Bc5 {[%clk 0:00:19]} 24. Kh2 {[%clk 0:00:31]}  Bxb5 {[%clk 0:00:13]} 25. axb5 {[%clk 0:00:30]}  Rd6 {[%clk 0:00:14]} 26. Bh3 {[%clk 0:00:30]}  Nf3+ {[%clk 0:00:13]} 27. Kg2 {[%clk 0:00:28]}  Rxd3 {[%clk 0:00:09]} 28. Bxd7 {[%clk 0:00:28]}  Rxd1 {[%clk 0:00:08]} 29. Rxd1 {[%clk 0:00:28]}  Nd4 {[%clk 0:00:08]} 30. Ra1 {[%clk 0:00:22]}  Nb3 {[%clk 0:00:05]} 31. Ra2 {[%clk 0:00:20]}  Bxe3 {[%clk 0:00:05]} 32. fxe3 {[%clk 0:00:20]}  Nc5 {[%clk 0:00:06]} 33. Bc6 {[%clk 0:00:20]}  Rb8 {[%clk 0:00:05]} 34. Rxa7 {[%clk 0:00:20]}  g6 {[%clk 0:00:04]} 35. Bd5 {[%clk 0:00:19]}  Rf8 {[%clk 0:00:02]} 36. Re7 {[%clk 0:00:18]}  Kg7 {[%clk 0:00:01]} 37. Rxe5 {[%clk 0:00:17]}  Kf6 {[%clk 0:00:02]} 38. g4 {[%clk 0:00:04]}  Kxe5 {[%clk 0:00:02]} 39. g5 {[%clk 0:00:04]}  hxg5 {[%clk 0:00:02]} 40. hxg5 {[%clk 0:00:05]}  f6 {[%clk 0:00:02]} 41. Kf3 {[%clk 0:00:06]}  fxg5+ {[%clk 0:00:02]} 42. Kg3 {[%clk 0:00:07]}  Nxe4+ {[%clk 0:00:03]} 43. Kg4 {[%clk 0:00:08]}  Rf6 {[%clk 0:00:04]} 44. Kh3 {[%clk 0:00:09]}  Rd6 {[%clk 0:00:04]} 45. Kg2 {[%clk 0:00:10]}  Rxd5 {[%clk 0:00:05]} 0-1


[Site "https://www.chess.com"]

[Event "Titled Tuesday Blitz November 22 Early 2022"]
[White "Moroni, Luca Jr"]
[Black "Baches Garcia, Guillermo"]
[WhiteFideId "865834"]
[BlackFideId "2209764"]
[WhiteElo "2573"]
[BlackElo "2441"]
[Result "1-0"]
[Round "01"]
[TimeControl "180+1"]
[Date "2022.11.23"]
[WhiteClock "0:01:43"]
[BlackClock "0:00:01"]

1. Nc3 {[%clk 0:03:00]}  d6 {[%clk 0:02:54]} 2. e4 {[%clk 0:03:01]}  c5 {[%clk 0:02:54]} 3. g3 {[%clk 0:03:01]}  Nc6 {[%clk 0:02:54]} 4. Bg2 {[%clk 0:03:01]}  g6 {[%clk 0:02:54]} 5. Nge2 {[%clk 0:02:59]}  Bg7 {[%clk 0:02:55]} 6. d3 {[%clk 0:02:57]}  Nf6 {[%clk 0:02:49]} 7. h3 {[%clk 0:02:54]}  Rb8 {[%clk 0:02:47]} 8. O-O {[%clk 0:02:51]}  O-O {[%clk 0:02:41]} 9. Be3 {[%clk 0:02:50]}  b5 {[%clk 0:02:37]} 10. Qd2 {[%clk 0:02:48]}  b4 {[%clk 0:02:33]} 11. Nd1 {[%clk 0:02:45]}  Re8 {[%clk 0:02:31]} 12. c3 {[%clk 0:02:41]}  a5 {[%clk 0:02:20]} 13. f4 {[%clk 0:02:40]}  Nd7 {[%clk 0:02:14]} 14. Nf2 {[%clk 0:02:39]}  bxc3 {[%clk 0:02:01]} 15. bxc3 {[%clk 0:02:38]}  Qb6 {[%clk 0:02:01]} 16. Rac1 {[%clk 0:02:26]}  Ba6 {[%clk 0:01:54]} 17. Kh2 {[%clk 0:02:24]}  a4 {[%clk 0:01:36]} 18. g4 {[%clk 0:02:21]}  a3 {[%clk 0:01:36]} 19. Ng3 {[%clk 0:02:18]}  Qa5 {[%clk 0:01:24]} 20. Rc2 {[%clk 0:02:18]}  Rb2 {[%clk 0:01:20]} 21. Rfc1 {[%clk 0:02:17]}  Reb8 {[%clk 0:01:11]} 22. e5 {[%clk 0:02:17]}  Qc7 {[%clk 0:00:55]} 23. e6 {[%clk 0:02:07]}  fxe6 {[%clk 0:00:51]} 24. f5 {[%clk 0:02:07]}  exf5 {[%clk 0:00:44]} 25. gxf5 {[%clk 0:02:08]}  Rxc2 {[%clk 0:00:35]} 26. Rxc2 {[%clk 0:02:09]}  Rb2 {[%clk 0:00:32]} 27. Rxb2 {[%clk 0:02:06]}  axb2 {[%clk 0:00:33]} 28. Qxb2 {[%clk 0:02:07]}  Nce5 {[%clk 0:00:26]} 29. Qa3 {[%clk 0:01:58]}  Bxd3 {[%clk 0:00:17]} 30. Nxd3 {[%clk 0:01:51]}  Nxd3 {[%clk 0:00:16]} 31. Qa8+ {[%clk 0:01:51]}  Nf8 {[%clk 0:00:11]} 32. Qd5+ {[%clk 0:01:52]}  Kh8 {[%clk 0:00:03]} 33. Qxd3 {[%clk 0:01:51]}  Be5 {[%clk 0:00:01]} 34. fxg6 {[%clk 0:01:48]}  Nxg6 {[%clk 0:00:01]} 35. Bd2 {[%clk 0:01:44]}  d5 {[%clk 0:00:01]} 36. Bxd5 {[%clk 0:01:43]} 1-0


[Site "https://www.chess.com"]

[Event "Titled Tuesday Blitz November 22 Early 2022"]
[White "Nanditha, V"]
[Black "Kleiman, Jake"]
[WhiteFideId "46626697"]
[BlackFideId "2020041"]
[WhiteElo "1564"]
[BlackElo "2572"]
[Result "0-1"]
[Round "01"]
[TimeControl "180+1"]
[Date "2022.11.23"]
[WhiteClock "0:00:17"]
[BlackClock "0:00:36"]

1. e4 {[%clk 0:02:54]}  c5 {[%clk 0:02:55]} 2. Nf3 {[%clk 0:02:54]}  e6 {[%clk 0:02:53]} 3. g3 {[%clk 0:02:53]}  a6 {[%clk 0:02:49]} 4. Bg2 {[%clk 0:02:53]}  b5 {[%clk 0:02:49]} 5. c3 {[%clk 0:02:49]}  Bb7 {[%clk 0:02:49]} 6. d3 {[%clk 0:02:50]}  Nf6 {[%clk 0:02:49]} 7. O-O {[%clk 0:02:50]}  Nc6 {[%clk 0:02:49]} 8. Nbd2 {[%clk 0:02:48]}  d5 {[%clk 0:02:49]} 9. Re1 {[%clk 0:02:47]}  dxe4 {[%clk 0:02:48]} 10. dxe4 {[%clk 0:02:47]}  c4 {[%clk 0:02:48]} 11. Qe2 {[%clk 0:02:46]}  Bc5 {[%clk 0:02:47]} 12. Nf1 {[%clk 0:02:43]}  Qb6 {[%clk 0:02:31]} 13. Be3 {[%clk 0:02:43]}  Nxe4 {[%clk 0:02:24]} 14. Nd4 {[%clk 0:02:36]}  Nxd4 {[%clk 0:02:16]} 15. cxd4 {[%clk 0:02:21]}  Bb4 {[%clk 0:02:07]} 16. d5 {[%clk 0:02:15]}  Nc5 {[%clk 0:02:06]} 17. dxe6 {[%clk 0:01:41]}  O-O {[%clk 0:01:42]} 18. Bxc5 {[%clk 0:01:31]}  Bxc5 {[%clk 0:01:38]} 19. exf7+ {[%clk 0:01:03]}  Rxf7 {[%clk 0:01:31]} 20. Ne3 {[%clk 0:01:03]}  Bxg2 {[%clk 0:01:23]} 21. Kxg2 {[%clk 0:01:02]}  Qc6+ {[%clk 0:01:18]} 22. Kg1 {[%clk 0:00:44]}  Raf8 {[%clk 0:01:17]} 23. Ng4 {[%clk 0:00:38]}  h5 {[%clk 0:01:04]} 24. Ne5 {[%clk 0:00:36]}  Rxf2 {[%clk 0:01:04]} 25. Nxc6 {[%clk 0:00:25]}  Rxe2+ {[%clk 0:00:58]} 26. Kh1 {[%clk 0:00:25]}  Rxb2 {[%clk 0:00:54]} 27. Rf1 {[%clk 0:00:21]}  Rxf1+ {[%clk 0:00:50]} 28. Rxf1 {[%clk 0:00:22]}  Rxa2 {[%clk 0:00:50]} 29. Ne5 {[%clk 0:00:20]}  c3 {[%clk 0:00:41]} 30. Nd7 {[%clk 0:00:20]}  Bd4 {[%clk 0:00:38]} 31. Rf8+ {[%clk 0:00:18]}  Kh7 {[%clk 0:00:38]} 32. Rf4 {[%clk 0:00:18]}  c2 {[%clk 0:00:35]} 33. Rxd4 {[%clk 0:00:17]}  c1=Q+ {[%clk 0:00:35]} 34. Rd1 {[%clk 0:00:17]}  Qxd1# {[%clk 0:00:36]} 0-1


[Site "https://www.chess.com"]

[Event "Titled Tuesday Blitz November 22 Early 2022"]
[White "Omariev, Maksim"]
[Black "Urazayev, Arystanbek"]
[WhiteFideId "4193423"]
[BlackFideId "13709810"]
[WhiteElo "2447"]
[BlackElo "2441"]
[Result "0-1"]
[Round "01"]
[TimeControl "180+1"]
[Date "2022.11.23"]
[WhiteClock "0:00:02"]
[BlackClock "0:01:01"]

1. g4 {[%clk 0:00:49]}  d5 {[%clk 0:02:57]} 2. Bg2 {[%clk 0:00:50]}  c6 {[%clk 0:02:58]} 3. h3 {[%clk 0:00:48]}  e5 {[%clk 0:02:58]} 4. d4 {[%clk 0:00:48]}  e4 {[%clk 0:02:58]} 5. c4 {[%clk 0:00:48]}  h5 {[%clk 0:02:57]} 6. g5 {[%clk 0:00:48]}  Be6 {[%clk 0:02:54]} 7. Nc3 {[%clk 0:00:48]}  Nd7 {[%clk 0:02:53]} 8. h4 {[%clk 0:00:46]}  Ne7 {[%clk 0:02:50]} 9. Nh3 {[%clk 0:00:45]}  Ng6 {[%clk 0:02:50]} 10. Nf4 {[%clk 0:00:45]}  Nxf4 {[%clk 0:02:51]} 11. Bxf4 {[%clk 0:00:46]}  Bb4 {[%clk 0:02:51]} 12. Qb3 {[%clk 0:00:40]}  a5 {[%clk 0:02:50]} 13. cxd5 {[%clk 0:00:37]}  Bxd5 {[%clk 0:02:39]} 14. Qc2 {[%clk 0:00:37]}  Qe7 {[%clk 0:02:34]} 15. O-O-O {[%clk 0:00:37]}  Bxc3 {[%clk 0:02:29]} 16. bxc3 {[%clk 0:00:38]}  Nb6 {[%clk 0:02:28]} 17. Kb1 {[%clk 0:00:38]}  Nc4 {[%clk 0:02:28]} 18. Ka1 {[%clk 0:00:38]}  O-O {[%clk 0:02:23]} 19. f3 {[%clk 0:00:31]}  e3 {[%clk 0:02:20]} 20. Bh3 {[%clk 0:00:28]}  g6 {[%clk 0:02:16]} 21. Rb1 {[%clk 0:00:25]}  b5 {[%clk 0:02:14]} 22. Rhd1 {[%clk 0:00:20]}  Rfe8 {[%clk 0:02:13]} 23. Rd3 {[%clk 0:00:21]}  b4 {[%clk 0:02:03]} 24. Qc1 {[%clk 0:00:20]}  Be6 {[%clk 0:01:42]} 25. Bxe6 {[%clk 0:00:17]}  Qxe6 {[%clk 0:01:43]} 26. Be5 {[%clk 0:00:15]}  c5 {[%clk 0:01:38]} 27. f4 {[%clk 0:00:15]}  a4 {[%clk 0:01:30]} 28. Bf6 {[%clk 0:00:14]}  b3 {[%clk 0:01:29]} 29. d5 {[%clk 0:00:13]}  Qd6 {[%clk 0:01:22]} 30. a3 {[%clk 0:00:04]}  b2+ {[%clk 0:01:17]} 31. Rxb2 {[%clk 0:00:04]}  Nxb2 {[%clk 0:01:18]} 32. Qxb2 {[%clk 0:00:05]}  Rab8 {[%clk 0:01:19]} 33. Qc2 {[%clk 0:00:06]}  c4 {[%clk 0:01:19]} 34. Rd1 {[%clk 0:00:04]}  Rb3 {[%clk 0:01:20]} 35. Qa2 {[%clk 0:00:05]}  Rxa3 {[%clk 0:01:20]} 36. Be5 {[%clk 0:00:04]}  Rxa2+ {[%clk 0:01:20]} 37. Kxa2 {[%clk 0:00:05]}  Qb6 {[%clk 0:01:03]} 38. Rb1 {[%clk 0:00:04]}  Qc5 {[%clk 0:01:03]} 39. d6 {[%clk 0:00:04]}  Qd5 {[%clk 0:01:03]} 40. Rb2 {[%clk 0:00:03]}  a3 {[%clk 0:01:02]} 41. Rc2 {[%clk 0:00:03]}  Qb5 {[%clk 0:01:01]} 42. Ka1 {[%clk 0:00:02]}  Qb3 {[%clk 0:01:01]} 43. Rc1 {[%clk 0:00:02]}  Qb2# {[%clk 0:01:01]} 0-1


[Site "https://www.chess.com"]

[Event "Titled Tuesday Blitz November 22 Early 2022"]
[White "Oparin, Grigoriy"]
[Black "Lucas, Arthur"]
[WhiteFideId "24125890"]
[BlackFideId "26093073"]
[WhiteElo "2639"]
[BlackElo "2251"]
[Result "1-0"]
[Round "01"]
[TimeControl "180+1"]
[Date "2022.11.22"]
[WhiteClock "0:01:29"]
[BlackClock "0:00:02"]

1. d4 {[%clk 0:02:53]}  Nf6 {[%clk 0:02:57]} 2. c4 {[%clk 0:02:54]}  e6 {[%clk 0:02:56]} 3. g3 {[%clk 0:02:54]}  d5 {[%clk 0:02:56]} 4. Bg2 {[%clk 0:02:55]}  Be7 {[%clk 0:02:54]} 5. Nf3 {[%clk 0:02:55]}  O-O {[%clk 0:02:54]} 6. Nc3 {[%clk 0:02:54]}  dxc4 {[%clk 0:02:51]} 7. Ne5 {[%clk 0:02:54]}  a6 {[%clk 0:02:48]} 8. Nxc4 {[%clk 0:02:50]}  Nd5 {[%clk 0:02:41]} 9. e4 {[%clk 0:02:47]}  Nxc3 {[%clk 0:02:40]} 10. bxc3 {[%clk 0:02:48]}  b5 {[%clk 0:02:39]} 11. Ne3 {[%clk 0:02:47]}  Bb7 {[%clk 0:02:39]} 12. O-O {[%clk 0:02:47]}  Nd7 {[%clk 0:02:37]} 13. c4 {[%clk 0:02:43]}  bxc4 {[%clk 0:02:22]} 14. Nxc4 {[%clk 0:02:43]}  Nb6 {[%clk 0:02:19]} 15. Na5 {[%clk 0:02:38]}  Rb8 {[%clk 0:02:10]} 16. Nxb7 {[%clk 0:02:32]}  Rxb7 {[%clk 0:02:11]} 17. Rb1 {[%clk 0:02:32]}  Rb8 {[%clk 0:02:05]} 18. Bf4 {[%clk 0:02:26]}  Qd7 {[%clk 0:02:01]} 19. Qc2 {[%clk 0:02:21]}  Rfc8 {[%clk 0:01:55]} 20. Rfc1 {[%clk 0:02:17]}  Qxd4 {[%clk 0:01:37]} 21. Qe2 {[%clk 0:02:00]}  e5 {[%clk 0:01:23]} 22. Be3 {[%clk 0:01:57]}  Qa4 {[%clk 0:01:22]} 23. Bh3 {[%clk 0:01:57]}  Rd8 {[%clk 0:00:58]} 24. Rxc7 {[%clk 0:01:57]}  Bb4 {[%clk 0:00:51]} 25. Qf3 {[%clk 0:01:51]}  Nd7 {[%clk 0:00:35]} 26. Bxd7 {[%clk 0:01:30]}  Rxd7 {[%clk 0:00:34]} 27. Rxd7 {[%clk 0:01:30]}  Qxd7 {[%clk 0:00:34]} 28. Bc5 {[%clk 0:01:31]}  a5 {[%clk 0:00:04]} 29. a3 {[%clk 0:01:31]}  Bxc5 {[%clk 0:00:02]} 30. Rxb8+ {[%clk 0:01:32]}  Bf8 {[%clk 0:00:03]} 31. Qc3 {[%clk 0:01:31]}  Qe7 {[%clk 0:00:01]} 32. Qxa5 {[%clk 0:01:29]}  h5 {[%clk 0:00:02]} 33. Qd8 {[%clk 0:01:29]} 1-0


[Site "https://www.chess.com"]

[Event "Titled Tuesday Blitz November 22 Early 2022"]
[White "Ovchinnikov, Vsevolod"]
[Black "Fernandez Hernandez, Gerardo"]
[WhiteFideId "24176842"]
[BlackFideId "2207400"]
[WhiteElo "2376"]
[BlackElo "2246"]
[Result "1/2-1/2"]
[Round "01"]
[TimeControl "180+1"]
[Date "2022.11.23"]
[WhiteClock "0:00:29"]
[BlackClock "0:00:35"]

1. d4 {[%clk 0:02:59]}  Nf6 {[%clk 0:02:58]} 2. c4 {[%clk 0:03:00]}  c5 {[%clk 0:02:58]} 3. d5 {[%clk 0:03:00]}  b5 {[%clk 0:02:58]} 4. cxb5 {[%clk 0:03:01]}  a6 {[%clk 0:02:58]} 5. bxa6 {[%clk 0:03:02]}  g6 {[%clk 0:02:57]} 6. Nc3 {[%clk 0:03:03]}  Bg7 {[%clk 0:02:57]} 7. a7 {[%clk 0:03:03]}  Rxa7 {[%clk 0:02:56]} 8. Nf3 {[%clk 0:03:04]}  O-O {[%clk 0:02:55]} 9. e4 {[%clk 0:03:04]}  d6 {[%clk 0:02:54]} 10. Be2 {[%clk 0:03:04]}  Ba6 {[%clk 0:02:49]} 11. O-O {[%clk 0:03:04]}  Qa5 {[%clk 0:02:47]} 12. Bd2 {[%clk 0:03:03]}  Bxe2 {[%clk 0:02:46]} 13. Qxe2 {[%clk 0:03:04]}  Qa6 {[%clk 0:02:47]} 14. Rfe1 {[%clk 0:02:47]}  Qxe2 {[%clk 0:02:45]} 15. Rxe2 {[%clk 0:02:48]}  Nbd7 {[%clk 0:02:40]} 16. h3 {[%clk 0:02:39]}  Rb8 {[%clk 0:02:36]} 17. Bg5 {[%clk 0:02:37]}  Nb6 {[%clk 0:02:33]} 18. Rd1 {[%clk 0:02:25]}  Na4 {[%clk 0:02:16]} 19. Nxa4 {[%clk 0:02:13]}  Rxa4 {[%clk 0:02:16]} 20. Bxf6 {[%clk 0:02:10]}  Bxf6 {[%clk 0:02:15]} 21. b3 {[%clk 0:02:10]}  Ra3 {[%clk 0:02:08]} 22. Rc1 {[%clk 0:02:08]}  Rba8 {[%clk 0:02:04]} 23. Rcc2 {[%clk 0:02:07]}  Kf8 {[%clk 0:01:50]} 24. Kf1 {[%clk 0:02:07]}  Bg7 {[%clk 0:01:45]} 25. Ke1 {[%clk 0:01:59]}  h6 {[%clk 0:01:44]} 26. Kd1 {[%clk 0:01:54]}  Ke8 {[%clk 0:01:43]} 27. Kc1 {[%clk 0:01:52]}  Kd7 {[%clk 0:01:39]} 28. g3 {[%clk 0:01:30]}  R8a7 {[%clk 0:01:37]} 29. Ne1 {[%clk 0:01:13]}  Bd4 {[%clk 0:01:30]} 30. Nf3 {[%clk 0:01:12]}  Bg7 {[%clk 0:01:29]} 31. h4 {[%clk 0:01:05]}  c4 {[%clk 0:01:16]} 32. Rxc4 {[%clk 0:01:02]}  Rxa2 {[%clk 0:01:15]} 33. Rxa2 {[%clk 0:01:03]}  Rxa2 {[%clk 0:01:14]} 34. Rc2 {[%clk 0:00:58]}  Ra1+ {[%clk 0:01:11]} 35. Kd2 {[%clk 0:00:58]}  Rb1 {[%clk 0:00:51]} 36. Ra2 {[%clk 0:00:49]}  Rxb3 {[%clk 0:00:49]} 37. Ra7+ {[%clk 0:00:48]}  Kd8 {[%clk 0:00:48]} 38. Ra8+ {[%clk 0:00:40]}  Kd7 {[%clk 0:00:47]} 39. Ra7+ {[%clk 0:00:40]}  Kd8 {[%clk 0:00:46]} 40. Ke2 {[%clk 0:00:30]}  Rb2+ {[%clk 0:00:40]} 41. Kf1 {[%clk 0:00:28]}  Rb4 {[%clk 0:00:35]} 42. Ra8+ {[%clk 0:00:28]}  Kd7 {[%clk 0:00:35]} 43. Ra7+ {[%clk 0:00:28]}  Kd8 {[%clk 0:00:34]} 44. Ra8+ {[%clk 0:00:28]}  Kd7 {[%clk 0:00:34]} 45. Ra7+ {[%clk 0:00:29]}  Kd8 {[%clk 0:00:35]} 1/2-1/2


[Site "https://www.chess.com"]

[Event "Titled Tuesday Blitz November 22 Early 2022"]
[White "Papasimakopoulos, Alexandros"]
[Black "Boraso, Alessio"]
[WhiteFideId "4244125"]
[BlackFideId "848077"]
[WhiteElo "2365"]
[BlackElo "2286"]
[Result "1-0"]
[Round "01"]
[TimeControl "180+1"]
[Date "2022.11.23"]
[WhiteClock "0:00:19"]
[BlackClock "0:00:02"]

1. d4 {[%clk 0:02:06]}  Nf6 {[%clk 0:02:58]} 2. c4 {[%clk 0:02:07]}  c5 {[%clk 0:02:56]} 3. d5 {[%clk 0:02:03]}  e6 {[%clk 0:02:57]} 4. Nc3 {[%clk 0:02:03]}  exd5 {[%clk 0:02:57]} 5. cxd5 {[%clk 0:02:04]}  g6 {[%clk 0:02:58]} 6. e4 {[%clk 0:02:01]}  d6 {[%clk 0:02:58]} 7. Bb5+ {[%clk 0:01:59]}  Nbd7 {[%clk 0:02:47]} 8. Bf4 {[%clk 0:01:08]}  Nh5 {[%clk 0:02:39]} 9. Be3 {[%clk 0:01:03]}  a6 {[%clk 0:02:37]} 10. Be2 {[%clk 0:01:02]}  Nhf6 {[%clk 0:02:25]} 11. Nf3 {[%clk 0:00:55]}  b5 {[%clk 0:02:20]} 12. Nd2 {[%clk 0:00:50]}  Bg7 {[%clk 0:02:21]} 13. Bf4 {[%clk 0:00:50]}  Qe7 {[%clk 0:02:17]} 14. O-O {[%clk 0:00:48]}  O-O {[%clk 0:02:06]} 15. Re1 {[%clk 0:00:47]}  Re8 {[%clk 0:01:48]} 16. Bf1 {[%clk 0:00:37]}  Ne5 {[%clk 0:01:40]} 17. h3 {[%clk 0:00:33]}  Nh5 {[%clk 0:01:25]} 18. Bh2 {[%clk 0:00:32]}  Qg5 {[%clk 0:01:25]} 19. Nf3 {[%clk 0:00:25]}  Nxf3+ {[%clk 0:01:01]} 20. Qxf3 {[%clk 0:00:25]}  Be5 {[%clk 0:01:02]} 21. Bxe5 {[%clk 0:00:23]}  Qxe5 {[%clk 0:01:01]} 22. g3 {[%clk 0:00:11]}  Ra7 {[%clk 0:00:55]} 23. Re2 {[%clk 0:00:12]}  Rae7 {[%clk 0:00:51]} 24. a4 {[%clk 0:00:12]}  b4 {[%clk 0:00:50]} 25. Nd1 {[%clk 0:00:12]}  Qf6 {[%clk 0:00:42]} 26. Qxf6 {[%clk 0:00:12]}  Nxf6 {[%clk 0:00:42]} 27. f3 {[%clk 0:00:12]}  a5 {[%clk 0:00:28]} 28. Ne3 {[%clk 0:00:12]}  Ba6 {[%clk 0:00:28]} 29. Rd2 {[%clk 0:00:12]}  Bxf1 {[%clk 0:00:25]} 30. Kxf1 {[%clk 0:00:13]}  Nd7 {[%clk 0:00:26]} 31. Nc4 {[%clk 0:00:14]}  Ne5 {[%clk 0:00:25]} 32. Nxd6 {[%clk 0:00:14]}  Rd8 {[%clk 0:00:25]} 33. Nb5 {[%clk 0:00:12]}  Nxf3 {[%clk 0:00:25]} 34. Re2 {[%clk 0:00:12]}  Rxe4 {[%clk 0:00:24]} 35. Rxe4 {[%clk 0:00:12]}  Nd2+ {[%clk 0:00:25]} 36. Ke2 {[%clk 0:00:12]}  Nxe4 {[%clk 0:00:26]} 37. Rd1 {[%clk 0:00:12]}  Nxg3+ {[%clk 0:00:26]} 38. Kf3 {[%clk 0:00:12]}  Nf5 {[%clk 0:00:27]} 39. d6 {[%clk 0:00:12]}  Kf8 {[%clk 0:00:17]} 40. Ke4 {[%clk 0:00:12]}  Ke8 {[%clk 0:00:11]} 41. Kd5 {[%clk 0:00:13]}  Kd7 {[%clk 0:00:11]} 42. Kxc5 {[%clk 0:00:13]}  Rc8+ {[%clk 0:00:09]} 43. Kb6 {[%clk 0:00:14]}  Ra8 {[%clk 0:00:02]} 44. Rc1 {[%clk 0:00:13]}  Rb8+ {[%clk 0:00:02]} 45. Kxa5 {[%clk 0:00:13]}  Nxd6 {[%clk 0:00:02]} 46. Rd1 {[%clk 0:00:14]}  Ra8+ {[%clk 0:00:03]} 47. Kxb4 {[%clk 0:00:14]}  Rb8 {[%clk 0:00:03]} 48. Rxd6+ {[%clk 0:00:13]}  Ke7 {[%clk 0:00:04]} 49. Rd1 {[%clk 0:00:14]}  f5 {[%clk 0:00:04]} 50. a5 {[%clk 0:00:15]}  g5 {[%clk 0:00:04]} 51. a6 {[%clk 0:00:15]}  f4 {[%clk 0:00:04]} 52. a7 {[%clk 0:00:15]}  Ra8 {[%clk 0:00:04]} 53. Kc5 {[%clk 0:00:16]}  h5 {[%clk 0:00:03]} 54. Kb6 {[%clk 0:00:17]}  g4 {[%clk 0:00:03]} 55. Kb7 {[%clk 0:00:17]}  Rg8 {[%clk 0:00:02]} 56. hxg4 {[%clk 0:00:17]}  hxg4 {[%clk 0:00:01]} 57. Nd4 {[%clk 0:00:18]}  f3 {[%clk 0:00:02]} 58. Nxf3 {[%clk 0:00:18]}  gxf3 {[%clk 0:00:02]} 59. a8=Q {[%clk 0:00:18]}  Rxa8 {[%clk 0:00:02]} 60. Kxa8 {[%clk 0:00:19]} 1-0


[Site "https://www.chess.com"]

[Event "Titled Tuesday Blitz November 22 Early 2022"]
[White "Pham, Khoi"]
[Black "Harsh Suresh"]
[WhiteFideId "1054988"]
[BlackFideId "45018464"]
[WhiteElo "2447"]
[BlackElo "2227"]
[Result "0-1"]
[Round "01"]
[TimeControl "180+1"]
[Date "2022.11.23"]
[WhiteClock "0:00:02"]
[BlackClock "0:00:07"]

1. e4 {[%clk 0:02:52]}  Nf6 {[%clk 0:02:52]} 2. e5 {[%clk 0:02:51]}  Nd5 {[%clk 0:02:51]} 3. c4 {[%clk 0:02:50]}  Nb6 {[%clk 0:02:51]} 4. c5 {[%clk 0:02:51]}  Nd5 {[%clk 0:02:50]} 5. Nc3 {[%clk 0:02:51]}  Nxc3 {[%clk 0:02:41]} 6. bxc3 {[%clk 0:02:52]}  e6 {[%clk 0:02:38]} 7. d4 {[%clk 0:02:51]}  d6 {[%clk 0:02:37]} 8. cxd6 {[%clk 0:02:47]}  cxd6 {[%clk 0:02:37]} 9. Nf3 {[%clk 0:02:47]}  Nc6 {[%clk 0:02:36]} 10. exd6 {[%clk 0:02:32]}  Bxd6 {[%clk 0:02:35]} 11. Bd3 {[%clk 0:02:33]}  Qa5 {[%clk 0:02:05]} 12. Bd2 {[%clk 0:02:28]}  O-O {[%clk 0:02:04]} 13. O-O {[%clk 0:02:27]}  Qh5 {[%clk 0:01:32]} 14. Re1 {[%clk 0:02:13]}  b6 {[%clk 0:01:21]} 15. Rb1 {[%clk 0:01:51]}  Bb7 {[%clk 0:01:14]} 16. Rb5 {[%clk 0:01:49]}  f5 {[%clk 0:00:41]} 17. Bc4 {[%clk 0:01:24]}  Nd8 {[%clk 0:00:36]} 18. Ne5 {[%clk 0:01:17]}  Qxd1 {[%clk 0:00:35]} 19. Rxd1 {[%clk 0:01:18]}  Ba6 {[%clk 0:00:30]} 20. a4 {[%clk 0:01:02]}  Bxb5 {[%clk 0:00:24]} 21. Bxb5 {[%clk 0:01:03]}  Bxe5 {[%clk 0:00:20]} 22. dxe5 {[%clk 0:01:03]}  Nf7 {[%clk 0:00:21]} 23. Re1 {[%clk 0:00:48]}  Rfd8 {[%clk 0:00:20]} 24. Bc1 {[%clk 0:00:46]}  Rac8 {[%clk 0:00:19]} 25. c4 {[%clk 0:00:40]}  Nxe5 {[%clk 0:00:17]} 26. Bg5 {[%clk 0:00:36]}  Rd4 {[%clk 0:00:11]} 27. h3 {[%clk 0:00:32]}  Nxc4 {[%clk 0:00:11]} 28. Rxe6 {[%clk 0:00:29]}  Nd6 {[%clk 0:00:11]} 29. Bd7 {[%clk 0:00:21]}  Rc7 {[%clk 0:00:10]} 30. Re7 {[%clk 0:00:13]}  Kf8 {[%clk 0:00:10]} 31. g4 {[%clk 0:00:07]}  h6 {[%clk 0:00:07]} 32. Be3 {[%clk 0:00:02]}  Kxe7 {[%clk 0:00:07]} 0-1


[Site "https://www.chess.com"]